[Event "2. Itzehoer Schach Open"]
[Site "Itzehoe, Germany"]
[Date "2023.04.30"]
[Round "4.13"]
[White "Graf, David"]
[Black "Fuhrmann, Åke"]
[Result "0-1"]
[TimeControl "90 min / 40 Züge + 30 min + 30 Sek pro Zug"]
[WhiteElo "1429"]
[BlackElo "1992"]

1. e4 {[%clk 01:30:55]} {[%emt 00:00:04]} c5 {[%clk 01:28:51]} {[%emt
00:02:10]} 2. Nc3 {[%clk 01:31:13]} {[%emt 00:00:12]} d6 {[%clk 01:28:48]}
{[%emt 00:00:33]} 3. f4 {[%clk 01:31:23]} {[%emt 00:00:19]} Nc6 {[%clk
01:29:11]} {[%emt 00:00:07]} 4. Nf3 {[%clk 01:31:47]} {[%emt 00:00:06]} g6
{[%clk 01:29:26]} {[%emt 00:00:15]} 5. Bc4 {[%clk 01:32:12]} {[%emt 00:00:06]}
Bg7 {[%clk 01:29:42]} {[%emt 00:00:14]} 6. O-O {[%clk 01:31:50]} {[%emt
00:00:51]} e6 {[%clk 01:30:03]} {[%emt 00:00:08]} 7. d3 {[%clk 01:31:33]}
{[%emt 00:00:48]} Nge7 {[%clk 01:30:25]} {[%emt 00:00:08]} 8. Qe1 {[%clk
01:29:11]} {[%emt 00:02:53]} O-O {[%clk 01:30:10]} {[%emt 00:00:44]} 9. Bb3
{[%clk 01:29:06]} {[%emt 00:00:36]} Nd4 {[%clk 01:28:59]} {[%emt 00:01:40]} 10.
Nxd4 {[%clk 01:29:18]} {[%emt 00:00:18]} cxd4 {[%clk 01:28:29]} {[%emt
00:01:01]} 11. Ne2 {[%clk 01:29:28]} {[%emt 00:00:20]} Bd7 {[%clk 01:24:22]}
{[%emt 00:04:37]} 12. Qg3 {[%clk 01:27:05]} {[%emt 00:02:53]} Kh8 {[%clk
01:15:49]} {[%emt 00:09:02]} 13. Bd2 {[%clk 01:17:01]} {[%emt 00:10:35]} a5
{[%clk 01:15:21]} {[%emt 00:00:58]} 14. a4 {[%clk 01:16:24]} {[%emt 00:01:07]}
b5 {[%clk 01:09:40]} {[%emt 00:06:11]} 15. f5 {[%clk 00:52:32]} {[%emt
00:24:21]} gxf5 {[%clk 01:09:55]} {[%emt 00:00:16]} 16. Qxd6 {[%clk 00:50:00]}
{[%emt 00:03:02]} b4 {[%clk 01:09:28]} {[%emt 00:00:57]} 17. Bg5 {[%clk
00:47:14]} {[%emt 00:03:16]} f6 {[%clk 01:05:19]} {[%emt 00:04:38]} 18. Bh4
{[%clk 00:47:11]} {[%emt 00:00:33]} e5 {[%clk 01:03:52]} {[%emt 00:01:58]} 19.
Be6 {[%clk 00:36:49]} {[%emt 00:10:52]} Bxe6 {[%clk 01:03:14]} {[%emt
00:01:08]} 20. Qxe6 {[%clk 00:37:08]} {[%emt 00:00:10]} Rc8 {[%clk 01:02:25]}
{[%emt 00:01:20]} 21. Ng3 {[%clk 00:27:35]} {[%emt 00:10:03]} f4 {[%clk
00:49:05]} {[%emt 00:13:49]} 22. Nf5 {[%clk 00:23:09]} {[%emt 00:04:56]} Nxf5
{[%clk 00:48:31]} {[%emt 00:01:04]} 23. Qxf5 {[%clk 00:23:33]} {[%emt
00:00:06]} Rxc2 {[%clk 00:48:43]} {[%emt 00:00:18]} 24. g3 {[%clk 00:11:48]}
{[%emt 00:12:15]} Bh6 {[%clk 00:39:08]} {[%emt 00:10:05]} 25. Rac1 {[%clk
00:06:57]} {[%emt 00:05:21]} Rxc1 {[%clk 00:37:29]} {[%emt 00:02:09]} 26. Rxc1
{[%clk 00:07:22]} {[%emt 00:00:06]} fxg3 {[%clk 00:37:37]} {[%emt 00:00:22]} 27.
Rc6 {[%clk 00:07:30]} {[%emt 00:00:22]} gxh2+ {[%clk 00:37:33]} {[%emt
00:00:33]} 28. Kxh2 {[%clk 00:07:52]} {[%emt 00:00:06]} Kg7 {[%clk 00:36:52]}
{[%emt 00:01:13]} 29. Ra6 {[%clk 00:03:45]} {[%emt 00:04:37]} Rf7 {[%clk
00:34:50]} {[%emt 00:02:32]} 30. Rc6 {[%clk 00:03:11]} {[%emt 00:01:03]} Bf4+
{[%clk 00:34:31]} {[%emt 00:00:49]} 31. Kh1 {[%clk 00:02:48]} {[%emt 00:00:54]}
h6 {[%clk 00:34:16]} {[%emt 00:00:45]} 32. Rc8 {[%clk 00:01:04]} {[%emt
00:02:14]} Qe7 {[%clk 00:34:36]} {[%emt 00:00:09]} 33. b3 {[%clk 00:00:39]}
{[%emt 00:00:55]} Bg5 {[%clk 00:34:52]} {[%emt 00:00:13]} 34. Bg3 {[%clk
00:00:31]} {[%emt 00:00:39]} Qd7 {[%clk 00:31:54]} {[%emt 00:03:28]} 35. Ra8
{[%clk 00:00:31]} {[%emt 00:00:30]} Qxf5 {[%clk 00:32:09]} {[%emt 00:00:15]} 36.
exf5 {[%clk 00:01:00]} Rc7 {[%clk 00:29:07]} {[%emt 00:03:32]} 37. Rxa5 {[%clk
00:01:22]} {[%emt 00:00:07]} Rc3 {[%clk 00:29:21]} {[%emt 00:00:16]} 38. Ra7+
{[%clk 00:01:19]} {[%emt 00:00:33]} Kf8 {[%clk 00:29:44]} {[%emt 00:00:07]} 39.
a5 {[%clk 00:01:06]} {[%emt 00:00:44]} Rxb3 {[%clk 00:29:07]} {[%emt 00:01:07]}
40. a6 {[%clk 00:01:08]} {[%emt 00:00:28]} Ra3 {[%clk 00:29:04]} {[%emt
00:00:32]} 41. Ra8+ {[%clk 00:01:25]} {[%emt 00:00:13]} Kf7 {[%clk 00:28:28]}
{[%emt 00:01:06]} 42. Be1 {[%clk 00:03:16]} {[%emt 00:28:39]} b3 {[%clk
00:56:39]} {[%emt 00:02:19]} 43. Rf8+ {[%clk 00:03:09]} {[%emt 00:00:37]} Kg7
{[%clk 00:56:35]} {[%emt 00:00:34]} 44. Rb8 {[%clk 00:00:41]} {[%emt 00:02:59]}
Rxa6 {[%clk 00:56:33]} {[%emt 00:00:31]} 0-1

[ePGN "0.1;DGT LiveChess/2.2.5"]

[Event "2. Itzehoer Schach Open"]
[Site "Itzehoe, Germany"]
[Date "2023.04.30"]
[Round "4.41"]
[White "Neffgen, Klaus"]
[Black "Moeller, Patrick"]
[Result "1-0"]
[TimeControl "90 min für 40 Züge, Rest 30 min + 30 Sek pro Zug"]
[WhiteElo "1533"]
[BlackElo "1343"]

1. d4 {[%clk 01:30:58]} {[%emt 00:00:02]} c6 {[%clk 01:30:48]} {[%emt
00:00:13]} 2. Nf3 {[%clk 01:31:11]} {[%emt 00:00:17]} d5 {[%clk 01:31:07]}
{[%emt 00:00:11]} 3. Bf4 {[%clk 01:31:35]} {[%emt 00:00:07]} Bf5 {[%clk
01:30:57]} {[%emt 00:00:40]} 4. e3 {[%clk 01:31:59]} {[%emt 00:00:06]} e6
{[%clk 01:30:37]} {[%emt 00:00:50]} 5. c4 {[%clk 01:31:04]} {[%emt 00:01:25]}
Nf6 {[%clk 01:28:28]} {[%emt 00:02:39]} 6. Nc3 {[%clk 01:31:21]} {[%emt
00:00:13]} Be7 {[%clk 01:26:32]} {[%emt 00:02:26]} 7. Bd3 {[%clk 01:30:57]}
{[%emt 00:00:54]} Bxd3 {[%clk 01:25:37]} {[%emt 00:01:25]} 8. Qxd3 {[%clk
01:31:14]} {[%emt 00:00:11]} Nbd7 {[%clk 01:23:40]} {[%emt 00:02:29]} 9. O-O
{[%clk 01:30:11]} {[%emt 00:01:33]} Nh5 {[%clk 01:19:43]} {[%emt 00:04:26]} 10.
Be5 {[%clk 01:28:47]} {[%emt 00:01:54]} f6 {[%clk 01:18:47]} {[%emt 00:01:27]}
11. Bg3 {[%clk 01:29:02]} {[%emt 00:00:15]} Nxg3 {[%clk 01:18:27]} {[%emt
00:00:49]} 12. hxg3 {[%clk 01:29:25]} {[%emt 00:00:07]} Qc7 {[%clk 01:18:06]}
{[%emt 00:00:53]} 13. cxd5 {[%clk 01:29:36]} {[%emt 00:00:18]} exd5 {[%clk
01:18:09]} {[%emt 00:00:27]} 14. a3 {[%clk 01:29:51]} {[%emt 00:00:15]} O-O-O
{[%clk 01:16:15]} {[%emt 00:02:24]} 15. Rfc1 {[%clk 01:30:11]} {[%emt
00:00:10]} g5 {[%clk 01:16:18]} {[%emt 00:00:27]} 16. Nxd5 {[%clk 01:29:22]}
{[%emt 00:01:19]} Qd6 {[%clk 01:13:41]} {[%emt 00:03:08]} 17. Nc3 {[%clk
01:26:46]} {[%emt 00:03:06]} Kb8 {[%clk 01:13:01]} {[%emt 00:01:10]} 18. b4
{[%clk 01:25:24]} {[%emt 00:01:51]} h5 {[%clk 01:09:22]} {[%emt 00:04:09]} 19.
Qf5 {[%clk 01:25:47]} {[%emt 00:00:07]} h4 {[%clk 01:02:38]} {[%emt 00:07:15]}
20. gxh4 {[%clk 01:26:10]} {[%emt 00:00:07]} gxh4 {[%clk 01:02:51]} {[%emt
00:00:17]} 21. b5 {[%clk 01:22:35]} {[%emt 00:04:05]} h3 {[%clk 00:47:11]}
{[%emt 00:16:10]} 22. g3 {[%clk 01:20:52]} {[%emt 00:02:12]} c5 {[%clk
00:35:08]} {[%emt 00:12:33]} 23. Ne4 {[%clk 01:20:02]} {[%emt 00:01:20]} Qb6
{[%clk 00:33:58]} {[%emt 00:01:40]} 24. dxc5 {[%clk 01:19:38]} {[%emt
00:00:54]} Qa5 {[%clk 00:31:48]} {[%emt 00:02:41]} 25. c6 {[%clk 01:16:54]}
{[%emt 00:03:13]} Ka8 {[%clk 00:22:31]} {[%emt 00:09:47]} 26. cxd7 {[%clk
01:16:02]} {[%emt 00:01:21]} a6 {[%clk 00:21:17]} {[%emt 00:01:45]} 27. Rc8+
{[%clk 01:12:04]} {[%emt 00:04:29]} Ka7 {[%clk 00:21:25]} {[%emt 00:00:21]} 28.
Nxf6 {[%clk 01:04:37]} {[%emt 00:07:56]} Rhf8 {[%clk 00:15:40]} {[%emt
00:06:16]} 29. Rxd8 {[%clk 01:03:26]} {[%emt 00:01:40]} Qxd8 {[%clk 00:15:31]}
{[%emt 00:00:40]} 30. Rc1 {[%clk 01:01:18]} {[%emt 00:02:38]} Bxf6 {[%clk
00:13:42]} {[%emt 00:02:20]} 31. Qc5+ {[%clk 00:56:49]} {[%emt 00:04:58]} Ka8
{[%clk 00:12:48]} {[%emt 00:01:24]} 32. b6 {[%clk 00:55:30]} {[%emt 00:01:49]}
Kb8 {[%clk 00:13:13]} {[%emt 00:00:05]} 33. Qd6+ {[%clk 00:55:47]} {[%emt
00:00:13]} Ka8 {[%clk 00:12:58]} {[%emt 00:00:45]} 34. Qxf8 {[%clk 00:55:13]}
{[%emt 00:01:04]} h2+ {[%clk 00:12:29]} {[%emt 00:00:59]} 35. Kxh2 {[%clk
00:55:21]} {[%emt 00:00:21]} Qxf8 {[%clk 00:12:56]} {[%emt 00:00:04]} 36. Rc8+
{[%clk 00:55:33]} {[%emt 00:00:18]} Qxc8 {[%clk 00:13:23]} {[%emt 00:00:03]} 37.
dxc8=Q# {[%clk 00:55:55]} {[%emt 00:00:09]} 1-0

[Event "2. Itzehoer Schach Open"]
[Site "Itzehoe, Germany"]
[Date "2023.04.30"]
[Round "4.47"]
[White "Greiner, Andre"]
[Black "Moeller, Rainer"]
[Result "0-1"]
[TimeControl "90 min für 40 Züge, Rest 30 min + 30 Sek pro Zug"]
[WhiteElo "796"]
[BlackElo "1414"]

1. e4 {[%clk 01:30:58]} {[%emt 00:00:02]} e5 {[%clk 01:30:53]} {[%emt
00:00:08]} 2. d4 {[%clk 01:31:17]} {[%emt 00:00:10]} exd4 {[%clk 01:30:35]}
{[%emt 00:00:47]} 3. Qxd4 {[%clk 01:31:21]} {[%emt 00:00:28]} Nc6 {[%clk
01:30:33]} {[%emt 00:00:31]} 4. Qa4 {[%clk 01:31:23]} {[%emt 00:00:29]} d6
{[%clk 01:29:32]} {[%emt 00:01:30]} 5. Bb5 {[%clk 01:31:04]} {[%emt 00:00:49]}
Bd7 {[%clk 01:29:44]} {[%emt 00:00:18]} 6. Nf3 {[%clk 01:29:52]} {[%emt
00:01:42]} a6 {[%clk 01:29:19]} {[%emt 00:00:56]} 7. Bxc6 {[%clk 01:28:43]}
{[%emt 00:01:39]} Bxc6 {[%clk 01:29:29]} {[%emt 00:00:19]} 8. Qd4 {[%clk
01:26:53]} {[%emt 00:02:18]} Nf6 {[%clk 01:26:01]} {[%emt 00:04:00]} 9. Bg5
{[%clk 01:26:31]} {[%emt 00:00:52]} Be7 {[%clk 01:26:08]} {[%emt 00:00:24]} 10.
O-O {[%clk 01:24:28]} {[%emt 00:02:33]} O-O {[%clk 01:26:06]} {[%emt 00:00:32]}
11. Nc3 {[%clk 01:23:13]} {[%emt 00:01:45]} h6 {[%clk 01:24:18]} {[%emt
00:02:17]} 12. Bxf6 {[%clk 01:20:39]} {[%emt 00:03:04]} Bxf6 {[%clk 01:24:32]}
{[%emt 00:00:16]} 13. e5 {[%clk 01:19:45]} {[%emt 00:01:24]} dxe5 {[%clk
01:23:21]} {[%emt 00:01:41]} 14. Qg4 {[%clk 01:18:06]} {[%emt 00:02:09]} Re8
{[%clk 01:20:41]} {[%emt 00:03:11]} 15. Rad1 {[%clk 01:18:02]} {[%emt
00:00:33]} Qe7 {[%clk 01:20:14]} {[%emt 00:00:58]} 16. Ne4 {[%clk 01:16:38]}
{[%emt 00:01:53]} Bxe4 {[%clk 01:16:28]} {[%emt 00:04:16]} 17. Qxe4 {[%clk
01:16:02]} {[%emt 00:01:07]} c6 {[%clk 01:16:25]} {[%emt 00:00:33]} 18. g3
{[%clk 01:15:01]} {[%emt 00:01:31]} Rad8 {[%clk 01:13:45]} {[%emt 00:03:10]} 19.
Nh4 {[%clk 01:14:26]} {[%emt 00:01:04]} Bxh4 {[%clk 01:12:45]} {[%emt
00:01:31]} 20. gxh4 {[%clk 01:14:23]} {[%emt 00:00:31]} Qe6 {[%clk 01:09:19]}
{[%emt 00:03:57]} 21. Kh1 {[%clk 01:12:21]} {[%emt 00:02:34]} f5 {[%clk
01:05:00]} {[%emt 00:04:48]} 22. Qg2 {[%clk 01:10:29]} {[%emt 00:02:22]} Qf6
{[%clk 01:02:30]} {[%emt 00:03:00]} 23. Qg3 {[%clk 01:06:54]} {[%emt 00:04:06]}
c5 {[%clk 01:00:43]} {[%emt 00:02:17]} 24. Rg1 {[%clk 01:05:31]} {[%emt
00:01:52]} Rd4 {[%clk 00:54:31]} {[%emt 00:06:43]} 25. Qb3+ {[%clk 01:04:35]}
{[%emt 00:01:25]} Qf7 {[%clk 00:45:58]} {[%emt 00:09:03]} 26. Qe3 {[%clk
00:58:21]} {[%emt 00:06:43]} Qd5+ {[%clk 00:38:44]} {[%emt 00:07:45]} 27. f3
{[%clk 00:57:49]} {[%emt 00:01:02]} Rxd1 {[%clk 00:38:44]} {[%emt 00:00:30]} 28.
Qxh6 {[%clk 00:56:00]} {[%emt 00:02:18]} Qxf3# {[%clk 00:38:01]} {[%emt
00:01:13]} 29. Qxg7# {[%clk 00:55:48]} {[%emt 00:00:06]} 0-1

[Event "2. Itzehoer Schach Open"]
[Site "Itzehoe, Germany"]
[Date "2023.04.30"]
[Round "4.52"]
[White "Hock, Reiner"]
[Black "Prigandt, Junis"]
[Result "0-1"]
[TimeControl "90 min für 40 Züge, Rest 30 min + 30 Sek pro Zug"]
[WhiteElo "1338"]
[BlackElo "995"]

1. d4 {[%clk 01:30:53]} {[%emt 00:00:07]} d5 {[%clk 01:30:53]} {[%emt
00:00:08]} 2. Bf4 {[%emt 00:00:20]} e6 {[%clk 01:31:09]} {[%emt 00:00:12]} 3.
e3 {[%clk 01:31:16]} {[%emt 00:00:19]} Nf6 {[%clk 01:31:19]} {[%emt 00:00:20]}
4. Nf3 {[%clk 01:31:03]} {[%emt 00:00:43]} Bd6 {[%clk 01:31:39]} {[%emt
00:00:10]} 5. Bg3 {[%clk 01:30:30]} {[%emt 00:01:02]} Bxg3 {[%clk 01:31:43]}
{[%emt 00:00:26]} 6. hxg3 {[%clk 01:30:27]} {[%emt 00:00:32]} Qd6 {[%clk
01:31:29]} {[%emt 00:00:46]} 7. Ne5 {[%clk 01:29:46]} {[%emt 00:01:11]} Nfd7
{[%clk 01:31:13]} {[%emt 00:00:46]} 8. Qh5 {[%clk 01:24:32]} {[%emt 00:05:43]}
Nxe5 {[%clk 01:29:37]} {[%emt 00:02:07]} 9. dxe5 {[%clk 01:24:36]} {[%emt
00:00:26]} Qb4+ {[%clk 01:29:24]} {[%emt 00:00:43]} 10. Nd2 {[%clk 01:23:48]}
{[%emt 00:01:18]} Qxb2 {[%clk 01:29:40]} {[%emt 00:00:14]} 11. Qd1 {[%clk
01:23:41]} {[%emt 00:00:35]} Qxe5 {[%clk 01:29:13]} {[%emt 00:00:57]} 12. Rb1
{[%clk 01:22:48]} {[%emt 00:01:23]} d4 {[%clk 01:25:46]} {[%emt 00:03:58]} 13.
Nc4 {[%clk 01:22:28]} {[%emt 00:00:50]} Qd5 {[%clk 01:23:48]} {[%emt 00:02:28]}
14. Rh5 {[%emt 00:00:34]} Qd8 {[%emt 00:02:27]} 15. Bd3 {[%clk 01:18:03]}
{[%emt 00:01:53]} dxe3 {[%clk 01:23:28]} {[%emt 00:00:51]} 16. fxe3 {[%clk
01:17:51]} {[%emt 00:00:41]} g6 {[%clk 01:22:27]} {[%emt 00:01:31]} 17. Rh3
{[%emt 00:00:36]} e5 {[%emt 00:01:01]} 18. Ke2 {[%clk 01:16:28]} {[%emt
00:00:16]} Bg4+ {[%clk 01:22:37]} {[%emt 00:00:22]} 19. Ke1 {[%clk 01:14:16]}
{[%emt 00:02:41]} Bxd1 {[%clk 01:22:58]} {[%emt 00:00:09]} 20. Rxd1 {[%clk
01:14:37]} {[%emt 00:00:09]} Nc6 {[%clk 01:22:35]} {[%emt 00:00:53]} 21. Bxg6
{[%clk 01:14:48]} {[%emt 00:00:18]} Qg5 {[%clk 01:21:22]} {[%emt 00:01:43]} 22.
Bh5 {[%emt 00:00:57]} b5 {[%emt 00:01:05]} 23. Nd2 {[%clk 01:10:55]} {[%emt
00:02:22]} Qxe3+ {[%clk 01:21:30]} {[%emt 00:00:22]} 24. Kf1 {[%emt 00:00:16]}
Rd8 {[%emt 00:00:40]} 25. g4 {[%clk 01:10:09]} {[%emt 00:00:20]} Qf4+ {[%clk
01:21:17]} {[%emt 00:00:42]} 26. Rf3 {[%emt 00:00:23]} Qh6 {[%emt 00:01:03]} 27.
Bxf7+ {[%clk 01:08:38]} {[%emt 00:00:35]} Ke7 {[%clk 01:20:36]} {[%emt
00:01:12]} 28. Ke2 {[%clk 01:06:31]} {[%emt 00:02:36]} Nd4+ {[%clk 01:20:28]}
{[%emt 00:00:39]} 0-1

[Event "2. Itzehoer Schach Open"]
[Site "Itzehoe, Germany"]
[Date "2023.04.30"]
[Round "4.38"]
[White "Steiner, Peter Markus"]
[Black "Eichmann, Phillip"]
[Result "1-0"]
[TimeControl "90 min für 40 Züge, Rest 30 min + 30 Sek pro Zug"]
[WhiteElo "1603"]
[BlackElo "1052"]

1. b4 {[%clk 01:30:36]} {[%emt 00:00:23]} e6 {[%clk 01:30:55]} {[%emt
00:00:06]} 2. Bb2 {[%clk 01:30:58]} {[%emt 00:00:08]} Bxb4 {[%clk 01:31:16]}
{[%emt 00:00:09]} 3. Bxg7 {[%clk 01:31:20]} {[%emt 00:00:06]} d5 {[%clk
01:30:37]} {[%emt 00:01:11]} 4. Bxh8 {[%clk 01:31:25]} {[%emt 00:00:24]} f6
{[%clk 01:30:55]} {[%emt 00:00:12]} 5. c3 {[%clk 01:30:17]} {[%emt 00:01:39]}
Bc5 {[%clk 01:31:14]} {[%emt 00:00:11]} 6. e3 {[%clk 01:29:17]} {[%emt
00:01:29]} Nh6 {[%clk 01:31:23]} {[%emt 00:00:21]} 7. Qh5+ {[%clk 01:28:10]}
{[%emt 00:01:36]} Nf7 {[%clk 01:31:45]} {[%emt 00:00:09]} 8. Nf3 {[%clk
01:23:33]} {[%emt 00:05:07]} Ke7 {[%clk 01:31:42]} {[%emt 00:00:33]} 9. Bxf6+
{[%clk 01:21:27]} {[%emt 00:02:36]} Kxf6 {[%clk 01:32:00]} {[%emt 00:00:12]} 10.
Bd3 {[%clk 01:16:36]} {[%emt 00:05:20]} Ke7 {[%clk 01:31:47]} {[%emt 00:00:44]}
11. Qh4+ {[%clk 01:16:47]} {[%emt 00:00:17]} Kd7 {[%clk 01:32:13]} {[%emt
00:00:07]} 12. Qxd8+ {[%clk 01:17:07]} {[%emt 00:00:09]} Kxd8 {[%clk 01:32:39]}
{[%emt 00:00:04]} 13. Bxh7 {[%clk 01:16:48]} {[%emt 00:00:47]} Nc6 {[%clk
01:32:58]} {[%emt 00:00:13]} 14. d4 {[%clk 01:16:22]} {[%emt 00:00:55]} Bd6
{[%clk 01:33:13]} {[%emt 00:00:16]} 15. Nbd2 {[%clk 01:16:02]} {[%emt
00:00:49]} Bd7 {[%clk 01:33:28]} {[%emt 00:00:16]} 16. Rb1 {[%clk 01:15:53]}
{[%emt 00:00:35]} b6 {[%clk 01:33:40]} {[%emt 00:00:23]} 17. Bd3 {[%clk
01:15:51]} {[%emt 00:00:29]} Bc8 {[%clk 01:33:47]} {[%emt 00:00:26]} 18. e4
{[%clk 01:11:52]} {[%emt 00:04:29]} Bb7 {[%clk 01:31:23]} {[%emt 00:02:54]} 19.
h4 {[%clk 01:11:09]} {[%emt 00:01:12]} Kd7 {[%clk 01:31:24]} {[%emt 00:00:29]}
20. Ng5 {[%clk 01:06:08]} {[%emt 00:05:30]} Nxg5 {[%clk 01:28:55]} {[%emt
00:02:58]} 21. hxg5 {[%clk 01:06:34]} {[%emt 00:00:06]} Rg8 {[%clk 01:29:16]}
{[%emt 00:00:10]} 22. e5 {[%clk 01:06:30]} {[%emt 00:00:33]} Be7 {[%clk
01:29:33]} {[%emt 00:00:14]} 23. f4 {[%clk 01:04:46]} {[%emt 00:02:13]} Rf8
{[%clk 01:29:16]} {[%emt 00:00:46]} 24. g3 {[%clk 01:05:07]} {[%emt 00:00:09]}
Kc8 {[%clk 01:29:42]} {[%emt 00:00:04]} 25. Ke2 {[%clk 01:05:23]} {[%emt
00:00:14]} Kb8 {[%clk 01:30:04]} {[%emt 00:00:08]} 26. Rh7 {[%clk 01:05:37]}
{[%emt 00:00:16]} a6 {[%clk 01:30:13]} {[%emt 00:00:21]} 27. Rbh1 {[%clk
01:05:59]} {[%emt 00:00:07]} Ba3 {[%clk 01:29:30]} {[%emt 00:01:15]} 28. Rh8
{[%clk 01:06:12]} {[%emt 00:00:17]} Rxh8 {[%clk 01:29:55]} {[%emt 00:00:04]} 29.
Rxh8+ {[%clk 01:06:37]} {[%emt 00:00:04]} Ka7 {[%clk 01:30:22]} {[%emt
00:00:04]} 30. g4 {[%clk 01:06:33]} {[%emt 00:00:33]} Bb2 {[%clk 01:30:47]}
{[%emt 00:00:05]} 31. Nb1 {[%clk 01:06:58]} {[%emt 00:00:05]} 1-0